fUSD/lending_fUSD_20250225
["ID","MTS","AMOUNT","RATE_DAILY","PERIOD"]
[354463153,1740519488119,-500.0,0.00049315,120]
[354463154,1740519488147,-500.0,0.00049315,120]
[354463155,1740519488175,-500.0,0.00049315,120]
[354463156,1740519488203,-593.99,0.00049315,120]
[354463157,1740519488230,-565.4,0.00049315,120]
[354463158,1740519488258,-500.0,0.00049315,120]
[354463159,1740519488288,-500.0,0.00049315,120]
[354463160,1740519488314,-500.0,0.00049315,120]
[354463161,1740519488342,-500.0,0.00049315,120]
[354463162,1740519488370,-500.0,0.00049315,120]
[354463163,1740519488398,-593.49,0.00049315,120]
[354463164,1740519488424,-714.05,0.00049315,120]
[354463165,1740519488450,-500.0,0.00049315,120]
[354463166,1740519488476,-2184.5,0.00049315,120]
[354463167,1740519488503,-637.38,0.00049315,120]
[354463168,1740519488529,-848.83,0.00049315,120]
[354463169,1740519488554,-500.96980222,0.00049315,120]
[354463170,1740519488580,-379.71673622,0.00049315,120]
[354463171,1740519488609,-1374.46,0.00049315,120]
[354463172,1740519488637,-500.0,0.00049315,120]
[354463173,1740519488666,-1147.88,0.00049315,120]
[354463174,1740519488692,-500.0,0.00049315,120]
[354463175,1740519488718,-1935.88,0.00049315,120]
[354463176,1740519488747,-500.0,0.00049315,120]
[354463177,1740519488772,-500.0,0.00049315,120]
[354463178,1740519488800,-509.9284397,0.00049315,120]
[354463179,1740519488827,-500.0,0.00049315,120]
[354463180,1740519488851,-500.0,0.00049315,120]
[354463181,1740519488875,-500.0,0.00049315,120]
[354463182,1740519488901,-500.0,0.00049315,120]
[354463183,1740519488926,-500.0,0.00049315,120]
[354463184,1740519488951,-519.36,0.00049315,30]
[354463185,1740519488975,-500.0,0.00049315,120]
[354463186,1740519488998,-500.0,0.00049315,120]
[354463187,1740519489023,-500.0,0.00049315,120]
[354463188,1740519489050,-500.0,0.00049315,120]
[354463189,1740519489073,-1023.82,0.00049315,120]
[354463190,1740519489097,-716.79,0.00049315,120]
[354463191,1740519489121,-1704.22,0.00049315,120]
[354463192,1740519489148,-1519.97,0.00049315,120]
[354463193,1740519489173,-500.0,0.00049315,120]
[354463194,1740519489199,-500.0,0.00049315,120]
[354463195,1740519489225,-500.0,0.00049315,120]
[354463196,1740519489254,-793.68,0.00049315,120]
[354463197,1740519489288,-793.68,0.00049315,120]
[354463198,1740519489318,-500.0,0.00049315,120]
[354463199,1740519489348,-643.4,0.00049315,120]
[354463200,1740519489379,-793.68,0.00049315,120]
[354463201,1740519489411,-793.68,0.00049315,120]
[354463202,1740519489441,-793.68,0.00049315,120]
[354463203,1740519489469,-793.68,0.00049315,120]
[354463204,1740519489499,-793.68,0.00049315,120]
[354463205,1740519489526,-793.68,0.00049315,120]
[354463206,1740519489558,-793.68,0.00049315,120]
[354463207,1740519489586,-793.68,0.00049315,120]
[354463208,1740519489614,-500.0,0.00049315,120]
[354463209,1740519489640,-793.68,0.00049315,120]
[354463210,1740519489666,-500.0,0.00049315,120]
[354463211,1740519489692,-793.68,0.00049315,120]
[354463212,1740519489718,-793.68,0.00049315,120]
[354463213,1740519489744,-793.68,0.00049315,120]
[354463214,1740519489774,-793.68,0.00049315,120]
[354463215,1740519489802,-793.68,0.00049315,120]
[354463216,1740519489829,-793.68,0.00049315,120]
[354463217,1740519489856,-793.68,0.00049315,120]
[354463218,1740519489882,-500.0,0.00049315,120]
[354463219,1740519489908,-793.68,0.00049315,120]
[354463220,1740519489935,-500.0,0.00049315,120]
[354463221,1740519489963,-793.68,0.00049315,120]
[354463222,1740519489989,-793.68,0.00049315,120]
[354463223,1740519490015,-500.0,0.00049315,120]
[354463224,1740519490041,-793.68,0.00049315,120]
[354463225,1740519490067,-793.68,0.00049315,120]
[354463226,1740519490096,-319.84971408,0.00049315,30]
[354463227,1740519490123,-500.0,0.00049315,120]
[354463228,1740519490149,-793.75403256,0.00049315,120]
[354463229,1740519490176,-500.0,0.00049315,120]
[354463230,1740519490202,-501.52,0.00049315,120]
[354463231,1740519490229,-1169.97,0.00049315,120]
[354463232,1740519490255,-1000.0,0.00049315,45]
[354463233,1740519490284,-521.06,0.00049315,120]
[354463234,1740519490311,-500.0,0.00049315,120]
[354463235,1740519490344,-657.11,0.00049315,120]
[354463236,1740519490374,-3961.54,0.00049315,120]
[354463237,1740519490402,-500.0,0.00049315,120]
[354463238,1740519490430,-500.0,0.00049315,120]
[354463239,1740519490458,-500.0,0.00049315,120]
[354463240,1740519490715,-500.0,0.00049315,120]
[354463241,1740519490743,-1182.76,0.00049315,120]
[354463242,1740519490775,-1809.74,0.00049315,120]
[354463243,1740519490812,-420.50485896,0.00049315,120]
[354463244,1740519490840,-500.0,0.00049315,120]
[354463245,1740519490867,-500.0,0.00049315,120]
[354463246,1740519490894,-500.0,0.00049315,120]
[354463247,1740519490922,-500.0,0.00049315,120]
[354463248,1740519490949,-1223.52,0.00049315,120]
[354463249,1740519490976,-500.0,0.00049315,120]
[354463250,1740519491003,-1655.54,0.00049315,120]
[354463251,1740519491031,-500.0,0.00049315,120]
[354463252,1740519491058,-500.0,0.00049315,120]
[354463253,1740519491085,-500.0,0.00049315,120]
[354463254,1740519491112,-500.0,0.00049315,120]
[354463255,1740519491139,-500.0,0.00049315,120]
[354463256,1740519491167,-946.26,0.00049315,120]
[354463257,1740519491194,-1465.86,0.00049315,120]
[354463258,1740519491222,-500.0,0.00049315,120]
[354463259,1740519491251,-500.0,0.00049315,120]
[354463260,1740519491281,-500.0,0.00049315,120]
[354463261,1740519491309,-500.0,0.00049315,120]
[354463262,1740519491337,-500.0,0.00049315,120]
[354463263,1740519491366,-769.86,0.00049315,120]
[354463264,1740519491394,-500.0,0.00049315,120]
[354463265,1740519491426,-500.0,0.00049315,120]
[354463266,1740519491454,-500.0,0.00049315,120]
[354463267,1740519491482,-564.26,0.00049315,120]
[354463268,1740519491509,-500.0,0.00049315,120]
[354463269,1740519491536,-5384.04,0.00049315,120]
[354463270,1740519491563,-500.0,0.00049315,120]
[354463271,1740519491590,-1255.0,0.00049315,120]
[354463272,1740519491616,-500.0,0.00049315,120]
[354463273,1740519491643,-500.0,0.00049315,120]
[354463274,1740519491669,-582.87,0.00049315,120]
[354463275,1740519491697,-500.0,0.00049315,120]
[354463276,1740519491723,-500.0,0.00049315,120]
[354463277,1740519491751,-500.0,0.00049315,120]
[354463278,1740519491779,-500.0,0.00049315,120]
[354463279,1740519491807,-500.0,0.00049315,120]
[354463280,1740519491833,-1242.23,0.00049315,120]
[354463281,1740519491860,-500.0,0.00049315,120]
[354463282,1740519491886,-500.0,0.00049315,120]
[354463283,1740519491912,-910.28,0.00049315,120]
[354463284,1740519491939,-500.0,0.00049315,120]
[354463285,1740519491965,-500.0,0.00049315,120]
[354463286,1740519491993,-876.73,0.00049315,120]
[354463287,1740519492019,-532.37,0.00049315,120]
[354463288,1740519492047,-3602.82,0.00049315,120]
[354463289,1740519492073,-500.0,0.00049315,120]
[354463290,1740519492099,-1830.4,0.00049315,30]
[354463291,1740519492126,-2308.31,0.00049315,120]
[354463292,1740519492153,-3632.08,0.00049315,120]
[354463293,1740519492180,-500.0,0.00049315,120]
[354463294,1740519492207,-500.0,0.00049315,120]
[354463295,1740519492233,-500.0,0.00049315,120]
[354463296,1740519492259,-500.0,0.00049315,120]
[354463297,1740519492287,-2140.87,0.00049315,120]
[354463298,1740519492314,-2869.52,0.00049315,90]
[354463299,1740519492340,-2869.52,0.00049315,90]
[354463300,1740519492366,-2869.52,0.00049315,90]
[354463301,1740519492393,-2869.52,0.00049315,90]
[354463302,1740519492419,-2869.52,0.00049315,90]
[354463303,1740519492445,-194.4465687,0.00049315,120]
[354463304,1740519492472,-2869.52,0.00049315,90]
[354463305,1740519492500,-2869.52,0.00049315,90]
[354463306,1740519492529,-963.48,0.00049315,120]
[354463307,1740519492557,-2869.52,0.00049315,90]
[354463308,1740519492585,-500.0,0.00049315,120]
[354463309,1740519492613,-2869.52,0.00049315,90]
[354463310,1740519492641,-500.0,0.00049315,120]
[354463311,1740519492668,-2869.52,0.00049315,90]
[354463312,1740519492700,-500.0,0.00049315,120]
[354463313,1740519492728,-2869.52,0.00049315,90]
[354463314,1740519492758,-2869.52,0.00049315,90]
[354463315,1740519492786,-2869.52,0.00049315,90]
[354463316,1740519492816,-2869.52,0.00049315,90]
[354463317,1740519492845,-500.0,0.00049315,120]
[354463318,1740519492873,-2869.52,0.00049315,90]
[354463319,1740519492902,-2869.52,0.00049315,90]
[354463320,1740519492928,-500.0,0.00049315,120]
[354463321,1740519492956,-2869.52,0.00049315,90]
[354463322,1740519492982,-2869.52,0.00049315,90]
[354463323,1740519493008,-1981.26,0.00049315,120]
[354463324,1740519493036,-2869.52,0.00049315,90]
[354463325,1740519493064,-2869.52,0.00049315,90]
[354463326,1740519493092,-500.0,0.00049315,120]
[354463327,1740519493121,-2869.52,0.00049315,90]
[354463328,1740519493148,-2869.52,0.00049315,90]
[354463329,1740519493175,-500.0,0.00049315,120]
[354463330,1740519493201,-2869.52,0.00049315,90]
[354463331,1740519493229,-2635.52,0.00049315,120]
[354463332,1740519493257,-2869.7442792,0.00049315,90]
[354463333,1740519493286,-500.0,0.00049315,120]
[354463334,1740519493313,-500.0,0.00049315,120]
[354463335,1740519493342,-500.0,0.00049315,120]
[354463336,1740519493572,-500.0,0.00049315,120]
[354463337,1740519493600,-768.35,0.00049315,120]
[354463338,1740519493629,-2563.58,0.00049315,120]
[354463339,1740519493656,-500.0,0.00049315,120]
[354463340,1740519493683,-500.0,0.00049315,120]
[354463341,1740519493709,-500.0,0.00049315,120]
[354463342,1740519493735,-694.45,0.00049315,120]
[354463343,1740519493768,-500.0,0.00049315,120]
[354463344,1740519493795,-500.0,0.00049315,120]
[354463345,1740519493823,-500.0,0.00049315,120]
[354463346,1740519493851,-500.0,0.00049315,120]
[354463347,1740519493876,-827.95,0.00049315,120]
[354463348,1740519493902,-500.0,0.00049315,120]
[354463349,1740519493930,-500.0,0.00049315,120]
[354463350,1740519493956,-500.0,0.00049315,120]
[354463351,1740519493982,-500.0,0.00049315,120]
[354463352,1740519494008,-500.0,0.00049315,120]
[354463353,1740519494035,-891.78,0.00049315,120]
[354463354,1740519494060,-4279.15,0.00049315,120]
[354463355,1740519494086,-798.69,0.00049315,120]
[354463356,1740519494113,-500.0,0.00049315,120]
[354463357,1740519494139,-927.65,0.00049315,120]
[354463358,1740519494166,-500.0,0.00049315,120]
[354463359,1740519494194,-500.0,0.00049315,120]
[354463360,1740519494223,-500.0,0.00049315,120]
[354463361,1740519494251,-628.2054451,0.00049315,120]
[354463362,1740519494282,-1858.96,0.00049315,120]
[354463363,1740519494309,-500.0,0.00049315,120]
[354463364,1740519494339,-259.55,0.00049315,120]
[354463365,1740519494367,-500.0,0.00049315,120]
[354463366,1740519494394,-500.0,0.00049315,120]
[354463367,1740519494420,-500.0,0.00049315,120]
[354463368,1740519494448,-611.61,0.00049315,120]
[354463369,1740519494475,-912.44,0.00049315,120]
[354463370,1740519494503,-2250.04,0.00049315,120]
[354463371,1740519494531,-2599.09,0.00049315,120]
[354463372,1740519494558,-500.0,0.00049315,120]
[354463373,1740519494584,-643.74691494,0.00049315,120]
[354463374,1740519494610,-503.85,0.00049315,120]
[354463375,1740519494638,-3421.37,0.00049315,120]
[354463376,1740519494665,-500.0,0.00049315,120]
[354463377,1740519494692,-615.010533,0.00049315,120]
[354463378,1740519494719,-2101.83,0.00049315,120]
[354463379,1740519494747,-2137.39,0.00049315,120]
[354463380,1740519494776,-2228.04,0.00049315,120]
[354463381,1740519494804,-500.0,0.00049315,120]
[354463382,1740519494831,-843.2,0.00049315,120]
[354463383,1740519494859,-500.0,0.00049315,120]
[354463384,1740519494886,-679.62,0.00049315,120]
[354463385,1740519494912,-806.69,0.00049315,120]
[354463386,1740519494938,-500.0,0.00049315,120]
[354463387,1740519494963,-500.23681129,0.00049315,120]
[354463388,1740519494989,-500.0,0.00049315,120]
[354463389,1740519495016,-3501.5,0.00049315,120]
[354463390,1740519495042,-500.0,0.00049315,120]
[354463391,1740519495069,-3350.56,0.00049315,120]
[354463392,1740519495095,-500.0,0.00049315,120]
[354463393,1740519495122,-500.0,0.00049315,120]
[354463394,1740519495148,-500.0,0.00049315,120]
[354463395,1740519495175,-1073.33,0.00049315,120]
[354463396,1740519495202,-990.09,0.00049315,120]
[354463397,1740519495230,-1566.95,0.00049315,120]
[354463398,1740519495257,-3048.15,0.00049315,120]
[354463399,1740519495286,-500.0,0.00049315,120]
[354463400,1740519495315,-500.0,0.00049315,120]
[354463401,1740519495345,-646.46,0.00049315,120]
[354463402,1740519495372,-500.563434,0.00049315,120]
[354463403,1740519495399,-500.0,0.00049315,120]
[354463404,1740519495428,-500.0,0.00049315,120]
[354463405,1740519495456,-504.57,0.00049315,120]
[354463406,1740519495483,-150.0,0.00049315,120]
[354463407,1740519495510,-500.0,0.00049315,120]
[354463408,1740519495537,-500.0,0.00049315,120]
[354463409,1740519495564,-500.0,0.00049315,120]
[354463410,1740519495591,-500.0,0.00049315,120]
[354463411,1740519495617,-2133.48,0.00049315,120]
[354463412,1740519495644,-500.0,0.00049315,120]
[354463413,1740519495671,-500.0,0.00049315,120]
[354463414,1740519495697,-588.54,0.00049315,120]
[354463415,1740519495725,-3477.44,0.00049315,120]
[354463416,1740519495754,-500.0,0.00049315,120]
[354463417,1740519495782,-500.0,0.00049315,120]
[354463418,1740519495809,-500.0,0.00049315,120]
[354463419,1740519495836,-500.0,0.00049315,120]
[354463420,1740519495862,-2218.02,0.00049315,120]
[354463421,1740519495888,-500.0,0.00049315,120]
[354463422,1740519495914,-1369.47,0.00049315,120]
[354463423,1740519495941,-5000.0,0.00049315,120]
[354463424,1740519495967,-500.0,0.00049315,120]
[354463425,1740519495993,-500.0,0.00049315,120]
[354463426,1740519496020,-1118.9,0.00049315,120]
[354463427,1740519496046,-500.0,0.00049315,120]
[354463428,1740519496072,-1414.95,0.00049315,120]
[354463429,1740519496100,-172.149247,0.00049315,120]
[354463430,1740519496127,-500.0,0.00049315,120]
[354463431,1740519496154,-930.31,0.00049315,120]
[354463432,1740519496387,-746.77,0.00049315,120]
[354463433,1740519496417,-500.0,0.00049315,120]
[354463434,1740519496448,-500.0,0.00049315,120]
[354463435,1740519496476,-500.0,0.00049315,120]
[354463436,1740519496503,-2405.61,0.00049315,120]
[354463437,1740519496535,-500.0,0.00049315,120]
[354463438,1740519496561,-500.0,0.00049315,120]
[354463439,1740519496588,-500.0,0.00049315,120]
[354463440,1740519496616,-500.0,0.00049315,120]
[354463441,1740519496644,-500.0,0.00049315,120]
[354463442,1740519496673,-709.59,0.00049315,120]
[354463443,1740519496700,-500.0,0.00049315,120]
[354463444,1740519496727,-500.0,0.00049315,120]
[354463445,1740519496758,-500.0,0.00049315,120]
[354463446,1740519496786,-500.0,0.00049315,120]
[354463447,1740519496813,-500.0,0.00049315,120]
[354463448,1740519496840,-500.0,0.00049315,120]
[354463449,1740519496867,-500.0,0.00049315,120]
[354463450,1740519496894,-500.0,0.00049315,120]
[354463451,1740519496921,-500.0,0.00049315,120]
[354463452,1740519496947,-2764.46,0.00049315,120]
[354463453,1740519496973,-500.0,0.00049315,120]
[354463454,1740519497000,-500.0,0.00049315,120]
[354463455,1740519497027,-500.0,0.00049315,120]
[354463456,1740519497056,-500.0,0.00049315,120]
[354463457,1740519497084,-500.0,0.00049315,120]
[354463458,1740519497111,-500.0,0.00049315,120]
[354463459,1740519497141,-500.0,0.00049315,120]
[354463460,1740519497170,-500.0,0.00049315,120]
[354463461,1740519497198,-500.0,0.00049315,120]
[354463462,1740519497227,-500.0,0.00049315,120]
[354463463,1740519497254,-639.09100774,0.00049315,120]
[354463464,1740519497285,-500.0,0.00049315,120]
[354463465,1740519497314,-500.0,0.00049315,120]
[354463466,1740519497343,-500.0,0.00049315,120]
[354463467,1740519497371,-500.0,0.00049315,120]
[354463468,1740519497399,-500.0,0.00049315,120]
[354463469,1740519497426,-500.0,0.00049315,120]
[354463470,1740519497451,-500.0,0.00049315,120]
[354463471,1740519497478,-500.0,0.00049315,120]
[354463472,1740519497505,-1908.14,0.00049315,120]
[354463473,1740519497532,-941.34,0.00049315,120]
[354463474,1740519497561,-2002.21,0.00049315,120]
[354463475,1740519497590,-4460.04,0.00049315,120]
[354463476,1740519497618,-500.0,0.00049315,120]
[354463477,1740519497647,-500.0,0.00049315,120]
[354463478,1740519497675,-500.0,0.00049315,120]
[354463479,1740519497701,-500.0,0.00049315,120]
[354463480,1740519497726,-500.0,0.00049315,120]
[354463481,1740519497757,-500.0,0.00049315,120]
[354463482,1740519497784,-500.0,0.00049315,120]
[354463483,1740519497812,-786.86,0.00049315,120]
[354463484,1740519497839,-1366.63,0.00049315,120]
[354463485,1740519497865,-500.0,0.00049315,120]
[354463486,1740519497891,-500.0,0.00049315,120]
[354463487,1740519497918,-3514.33,0.00049315,120]
[354463488,1740519497946,-500.0,0.00049315,120]
[354463489,1740519497972,-500.0,0.00049315,120]
[354463490,1740519497999,-500.0,0.00049315,120]
[354463491,1740519498025,-500.0,0.00049315,120]
[354463492,1740519498053,-500.0,0.00049315,120]
[354463493,1740519498081,-500.0,0.00049315,120]
[354463494,1740519498108,-500.0,0.00049315,120]
[354463495,1740519498137,-8740.11,0.00049315,120]
[354463496,1740519498163,-500.0,0.00049315,120]
[354463497,1740519498190,-1310.28,0.00049315,120]
[354463498,1740519498219,-8740.11,0.00049315,120]
[354463499,1740519498245,-500.0,0.00049315,120]
[354463500,1740519498275,-8740.11,0.00049315,120]
[354463501,1740519498304,-8740.11,0.00049315,120]
[354463502,1740519498330,-500.0,0.00049315,120]
[354463503,1740519498359,-8740.11,0.00049315,120]
[354463504,1740519498386,-500.0,0.00049315,120]
[354463505,1740519498414,-8740.11,0.00049315,120]
[354463506,1740519498441,-1935.63,0.00049315,120]
[354463507,1740519498471,-8740.11,0.00049315,120]
[354463508,1740519498500,-8740.11,0.00049315,120]
[354463509,1740519498529,-8740.11,0.00049315,120]
[354463510,1740519498559,-8740.11,0.00049315,120]
[354463511,1740519498586,-500.0,0.00049315,120]
[354463512,1740519498614,-8740.11,0.00049315,120]
[354463513,1740519498641,-628.0,0.00049315,120]
[354463514,1740519498668,-500.0,0.00049315,120]
[354463515,1740519498696,-500.0,0.00049315,120]
[354463516,1740519498724,-8740.11,0.00049315,120]
[354463517,1740519498754,-500.0,0.00049315,120]
[354463518,1740519498783,-500.0,0.00049315,120]
[354463519,1740519498812,-8740.11,0.00049315,120]
[354463520,1740519498842,-8740.11,0.00049315,120]
[354463521,1740519498870,-1057.28,0.00049315,120]
[354463522,1740519498898,-8740.11,0.00049315,120]
[354463523,1740519498925,-8740.11,0.00049315,120]
[354463524,1740519498951,-500.0,0.00049315,120]
[354463525,1740519498980,-8740.11,0.00049315,120]
[354463526,1740519499008,-8740.11,0.00049315,120]
[354463527,1740519499037,-8740.11,0.00049315,120]
[354463528,1740519499286,-1584.4,0.00049315,120]
[354463529,1740519499317,-8740.11,0.00049315,120]
[354463530,1740519499347,-8740.11,0.00049315,120]
[354463531,1740519499377,-1584.4,0.00049315,120]
[354463532,1740519499408,-8740.11,0.00049315,120]
[354463533,1740519499438,-1584.4,0.00049315,120]
[354463534,1740519499467,-8740.11,0.00049315,120]
[354463535,1740519499494,-3477.15,0.00049315,120]
[354463536,1740519499524,-1584.4,0.00049315,120]
[354463537,1740519499553,-2240.91,0.00049315,120]
[354463538,1740519499582,-500.0,0.00049315,120]
[354463539,1740519499611,-1584.4,0.00049315,120]
[354463540,1740519499640,-8740.20121845,0.00049315,120]
[354463541,1740519499670,-1584.4,0.00049315,120]
[354463542,1740519499698,-1584.4,0.00049315,120]
[354463543,1740519499729,-1584.4,0.00049315,120]
[354463544,1740519499760,-1584.4,0.00049315,120]
[354463545,1740519499787,-500.0,0.00049315,30]
[354463546,1740519499817,-1584.4,0.00049315,120]
[354463547,1740519499847,-1584.4,0.00049315,120]
[354463548,1740519499875,-1584.4,0.00049315,120]
[354463549,1740519499902,-500.0,0.00049315,120]
[354463550,1740519499929,-500.0,0.00049315,120]
[354463551,1740519499955,-500.0,0.00049315,120]
[354463552,1740519499982,-1584.4,0.00049315,120]
[354463553,1740519500008,-1584.4,0.00049315,120]
[354463554,1740519500037,-1584.4,0.00049315,120]
[354463555,1740519500066,-1480.23,0.00049315,120]
[354463556,1740519500097,-1584.4,0.00049315,120]
[354463557,1740519500126,-1584.4,0.00049315,120]
[354463558,1740519500154,-500.0,0.00049315,120]
[354463559,1740519500183,-500.0,0.00049315,120]
[354463560,1740519500213,-1584.4,0.00049315,120]
[354463561,1740519500240,-696.62,0.00049315,120]
[354463562,1740519500267,-1294.12,0.00049315,120]
[354463563,1740519500297,-1584.4,0.00049315,120]
[354463564,1740519500327,-1584.4,0.00049315,120]
[354463565,1740519500354,-1584.4,0.00049315,120]
[354463566,1740519500381,-500.0,0.00049315,120]
[354463567,1740519500408,-743.65,0.00049315,120]
[354463568,1740519500436,-1584.4,0.00049315,120]
[354463569,1740519500465,-1584.4,0.00049315,120]
[354463570,1740519500492,-500.0,0.00049315,120]
[354463571,1740519500519,-521.63,0.00049315,120]
[354463572,1740519500549,-1584.46,0.00049315,120]
[354463573,1740519500577,-500.0,0.00049315,120]
[354463574,1740519500604,-269.91150248,0.00049315,120]
[354463575,1740519500632,-500.0,0.00049315,120]
[354463576,1740519500659,-652.56,0.00049315,120]
[354463577,1740519500687,-1989.28,0.00049315,120]
[354463578,1740519500713,-500.0,0.00049315,120]
[354463579,1740519500742,-1487.76,0.00049315,120]
[354463580,1740519500785,-500.0,0.00049315,120]
[354463581,1740519500813,-3154.05,0.00049315,120]
[354463582,1740519500845,-1667.45,0.00049315,120]
[354463583,1740519500871,-500.0,0.00049315,120]
[354463584,1740519500897,-500.0,0.00049315,120]
[354463585,1740519500926,-590.28,0.00049315,120]
[354463586,1740519500952,-500.0,0.00049315,120]
[354463587,1740519500979,-2734.07,0.00049315,120]
[354463588,1740519501005,-2000.0,0.00049315,30]
[354463589,1740519501033,-500.0,0.00049315,120]
[354463590,1740519501060,-1727.39,0.00049315,120]
[354463591,1740519501087,-1890.84,0.00049315,120]
[354463592,1740519501115,-4260.98,0.00049315,120]
[354463593,1740519501157,-500.0,0.00049315,120]
[354463594,1740519501198,-1140.01,0.00049315,120]
[354463595,1740519501236,-500.0,0.00049315,120]
[354463596,1740519501276,-500.0,0.00049315,120]
[354463597,1740519501318,-500.0,0.00049315,120]
[354463598,1740519501360,-564.51,0.00049315,120]
[354463599,1740519501404,-500.0,0.00049315,120]
[354463600,1740519501446,-500.0,0.00049315,120]
[354463601,1740519501487,-500.0,0.00049315,120]
[354463602,1740519501528,-1200.85,0.00049315,120]
[354463603,1740519501573,-5416.33,0.00049315,120]
[354463604,1740519501616,-500.0,0.00049315,120]
[354463605,1740519501657,-607.20885459,0.00049315,120]
[354463606,1740519501701,-500.0,0.00049315,120]
[354463607,1740519501745,-500.0,0.00049315,120]
[354463608,1740519501796,-961.29,0.00049315,120]
[354463609,1740519501839,-500.0,0.00049315,120]
[354463610,1740519501881,-654.66,0.00049315,120]
[354463611,1740519501925,-564.04,0.00049315,120]
[354463612,1740519501967,-1218.8,0.00049315,120]
[354463613,1740519502008,-500.0,0.00049315,120]
[354463614,1740519502047,-387.151741,0.00049315,120]
[354463616,1740519502089,-500.0,0.00049315,120]
[354463617,1740519502129,-1457.01,0.00049315,120]
[354463618,1740519502170,-556.01,0.00049315,120]
[354463619,1740519502211,-556.01,0.00049315,120]
[354463620,1740519502252,-556.01,0.00049315,120]
[354463621,1740519502295,-556.01,0.00049315,120]
[354463622,1740519502336,-556.01,0.00049315,120]
[354463623,1740519502379,-556.01,0.00049315,120]
[354463624,1740519502596,-500.0,0.00049315,120]
[354463625,1740519502653,-556.01,0.00049315,120]
[354463626,1740519502693,-500.0,0.00049315,120]
[354463627,1740519502733,-4240.09,0.00049315,120]
[354463628,1740519502779,-556.01,0.00049315,120]
[354463629,1740519502820,-1309.25,0.00049315,120]
[354463630,1740519502862,-556.01,0.00049315,120]
[354463631,1740519502901,-500.0,0.00049315,120]
[354463632,1740519502938,-556.01,0.00049315,120]
[354463633,1740519502977,-2734.98,0.00049315,120]
[354463634,1740519503015,-556.01,0.00049315,120]
[354463635,1740519503056,-556.01,0.00049315,120]
[354463636,1740519503094,-556.01,0.00049315,120]
[354463637,1740519503136,-556.01,0.00049315,120]
[354463638,1740519503176,-556.01,0.00049315,120]
[354463639,1740519503215,-500.0,0.00049315,120]
[354463640,1740519503257,-556.01,0.00049315,120]
[354463641,1740519503299,-556.01,0.00049315,120]
[354463642,1740519503338,-556.01,0.00049315,120]
[354463643,1740519503380,-556.01,0.00049315,120]
[354463644,1740519503423,-721.17,0.00049315,120]
[354463645,1740519503464,-556.01,0.00049315,120]
[354463646,1740519503505,-556.01,0.00049315,120]
[354463647,1740519503546,-556.01,0.00049315,120]
[354463648,1740519503590,-556.01,0.00049315,120]
[354463649,1740519503632,-2324.38,0.00049315,120]
[354463650,1740519503675,-500.0,0.00049315,120]
[354463651,1740519503715,-556.16814427,0.00049315,120]
[354463652,1740519503756,-500.0,0.00049315,120]
[354463653,1740519503796,-500.0,0.00049315,120]